{"text_format":"3","workbook":"xlsx","n_sheets":1,"sheets":["Список продуктів"],"not_rendered":{"images":1,"defined_names":3},"read":"whole","date_system":"1900"}

{"sheet":"Список продуктів","index":0,"n_rows":31,"n_cols":8,"rows_kept":31}
[null,"Список продуктів"]
[null,"ДАТА"]
[null,"Придбано?","Товар","Категорія","Кількість","Ціна","Загальна ціна","Бренд і примітки"]
[null,null,"Апельсини","Овочі та фрукти",null,null,{"$f":"IFERROR(SUM(СписокПродуктів[[#This Row],[Кількість]]*СписокПродуктів[[#This Row],[Ціна]]), \"\")","v":{"v":0,"d":"0.00 ₴"}}]
[null,null,"Яблука","Овочі та фрукти",null,null,{"$f":"IFERROR(SUM(СписокПродуктів[[#This Row],[Кількість]]*СписокПродуктів[[#This Row],[Ціна]]), \"\")","v":{"v":0,"d":"0.00 ₴"}}]
[null,null,"Банани","Овочі та фрукти",null,null,{"$f":"IFERROR(SUM(СписокПродуктів[[#This Row],[Кількість]]*СписокПродуктів[[#This Row],[Ціна]]), \"\")","v":{"v":0,"d":"0.00 ₴"}}]
[null,null,"Салат-латук","Овочі та фрукти",null,null,{"$f":"IFERROR(SUM(СписокПродуктів[[#This Row],[Кількість]]*СписокПродуктів[[#This Row],[Ціна]]), \"\")","v":{"v":0,"d":"0.00 ₴"}}]
[null,null,"Помідори","Овочі та фрукти",null,null,{"$f":"IFERROR(SUM(СписокПродуктів[[#This Row],[Кількість]]*СписокПродуктів[[#This Row],[Ціна]]), \"\")","v":{"v":0,"d":"0.00 ₴"}},"  "]
[null,null,"Молоко ","Молочні продукти",null,null,{"$f":"IFERROR(SUM(СписокПродуктів[[#This Row],[Кількість]]*СписокПродуктів[[#This Row],[Ціна]]), \"\")","v":{"v":0,"d":"0.00 ₴"}}]
[null,null,"Сир","Молочні продукти",null,null,{"$f":"IFERROR(SUM(СписокПродуктів[[#This Row],[Кількість]]*СписокПродуктів[[#This Row],[Ціна]]), \"\")","v":{"v":0,"d":"0.00 ₴"}}]
[null,null,"Яйця","Молочні продукти",null,null,{"$f":"IFERROR(SUM(СписокПродуктів[[#This Row],[Кількість]]*СписокПродуктів[[#This Row],[Ціна]]), \"\")","v":{"v":0,"d":"0.00 ₴"}}]
[null,null,"Домашній сир","Молочні продукти",null,null,{"$f":"IFERROR(SUM(СписокПродуктів[[#This Row],[Кількість]]*СписокПродуктів[[#This Row],[Ціна]]), \"\")","v":{"v":0,"d":"0.00 ₴"}}]
[null,null,"Яловичина","М’ясо",null,null,{"$f":"IFERROR(SUM(СписокПродуктів[[#This Row],[Кількість]]*СписокПродуктів[[#This Row],[Ціна]]), \"\")","v":{"v":0,"d":"0.00 ₴"}}]
[null,null,"Птиця","М’ясо",null,null,{"$f":"IFERROR(SUM(СписокПродуктів[[#This Row],[Кількість]]*СписокПродуктів[[#This Row],[Ціна]]), \"\")","v":{"v":0,"d":"0.00 ₴"}}]
[null,null,"Шинка","М’ясо",null,null,{"$f":"IFERROR(SUM(СписокПродуктів[[#This Row],[Кількість]]*СписокПродуктів[[#This Row],[Ціна]]), \"\")","v":{"v":0,"d":"0.00 ₴"}}]
[null,null,"Сік","Напої",null,null,{"$f":"IFERROR(SUM(СписокПродуктів[[#This Row],[Кількість]]*СписокПродуктів[[#This Row],[Ціна]]), \"\")","v":{"v":0,"d":"0.00 ₴"}}]
[null,null,"Кава","Напої",null,null,{"$f":"IFERROR(SUM(СписокПродуктів[[#This Row],[Кількість]]*СписокПродуктів[[#This Row],[Ціна]]), \"\")","v":{"v":0,"d":"0.00 ₴"}}]
[null,null,"Чай","Напої",null,null,{"$f":"IFERROR(SUM(СписокПродуктів[[#This Row],[Кількість]]*СписокПродуктів[[#This Row],[Ціна]]), \"\")","v":{"v":0,"d":"0.00 ₴"}}]
[null,null,"Вода","Напої",null,null,{"$f":"IFERROR(SUM(СписокПродуктів[[#This Row],[Кількість]]*СписокПродуктів[[#This Row],[Ціна]]), \"\")","v":{"v":0,"d":"0.00 ₴"}}]
[null,null,"Локшина","Макарони",null,null,{"$f":"IFERROR(SUM(СписокПродуктів[[#This Row],[Кількість]]*СписокПродуктів[[#This Row],[Ціна]]), \"\")","v":{"v":0,"d":"0.00 ₴"}}]
[null,null,"Рис","Макарони",null,null,{"$f":"IFERROR(SUM(СписокПродуктів[[#This Row],[Кількість]]*СписокПродуктів[[#This Row],[Ціна]]), \"\")","v":{"v":0,"d":"0.00 ₴"}}]
[null,null,"Консерви","Суп",null,null,{"$f":"IFERROR(SUM(СписокПродуктів[[#This Row],[Кількість]]*СписокПродуктів[[#This Row],[Ціна]]), \"\")","v":{"v":0,"d":"0.00 ₴"}}]
[null,null,"Суха суміш","Суп",null,null,{"$f":"IFERROR(SUM(СписокПродуктів[[#This Row],[Кількість]]*СписокПродуктів[[#This Row],[Ціна]]), \"\")","v":{"v":0,"d":"0.00 ₴"}}]
[null,null,"Хліб","Хлібобулочні вироби",null,null,{"$f":"IFERROR(SUM(СписокПродуктів[[#This Row],[Кількість]]*СписокПродуктів[[#This Row],[Ціна]]), \"\")","v":{"v":0,"d":"0.00 ₴"}}]
[null,null,"Чіпси","Закуски",null,null,{"$f":"IFERROR(SUM(СписокПродуктів[[#This Row],[Кількість]]*СписокПродуктів[[#This Row],[Ціна]]), \"\")","v":{"v":0,"d":"0.00 ₴"}}]
[null,null,"Кренделі","Закуски",null,null,{"$f":"IFERROR(SUM(СписокПродуктів[[#This Row],[Кількість]]*СписокПродуктів[[#This Row],[Ціна]]), \"\")","v":{"v":0,"d":"0.00 ₴"}}]
[null,null,"Морозиво","Закуски",null,null,{"$f":"IFERROR(SUM(СписокПродуктів[[#This Row],[Кількість]]*СписокПродуктів[[#This Row],[Ціна]]), \"\")","v":{"v":0,"d":"0.00 ₴"}}]
[null,null,"Печиво","Закуски",null,null,{"$f":"IFERROR(SUM(СписокПродуктів[[#This Row],[Кількість]]*СписокПродуктів[[#This Row],[Ціна]]), \"\")","v":{"v":0,"d":"0.00 ₴"}}]
[null,null,"Одноразові тарілки","Матеріали",null,null,{"$f":"IFERROR(SUM(СписокПродуктів[[#This Row],[Кількість]]*СписокПродуктів[[#This Row],[Ціна]]), \"\")","v":{"v":0,"d":"0.00 ₴"}}]
[null,null,"Серветки","Матеріали",null,null,{"$f":"IFERROR(SUM(СписокПродуктів[[#This Row],[Кількість]]*СписокПродуктів[[#This Row],[Ціна]]), \"\")","v":{"v":0,"d":"0.00 ₴"}}]
[{"$nulls":6},{"$f":"SUBTOTAL(109,СписокПродуктів[Загальна ціна])","v":{"v":0,"d":"0.00 ₴"}}]